[Event "Titled Tuesday Blitz June 27 Early 2023"]
[White "Eynullayev, Altay"]
[Black "Bacrot, Etienne"]
[WhiteFideId "13413562"]
[BlackFideId "605506"]
[WhiteElo "2506"]
[BlackElo "2879"]
[Result "0-1"]
[Round "1"]
[TimeControl "180+2"]
[Date "2023.06.27"]
[WhiteClock "0:00:12"]
[BlackClock "0:00:04"]
[Board "46"]

1. e4 {[%clk 0:02:59]}  c5 {[%clk 0:02:59]} 2. Nf3 {[%clk 0:02:59]}  d6 {[%clk 0:03:00]} 3. d4 {[%clk 0:02:59]}  cxd4 {[%clk 0:03:01]} 4. Nxd4 {[%clk 0:02:59]}  Nf6 {[%clk 0:03:00]} 5. Nc3 {[%clk 0:02:59]}  Nc6 {[%clk 0:03:00]} 6. Bg5 {[%clk 0:02:58]}  e6 {[%clk 0:03:00]} 7. Bb5 {[%clk 0:02:58]}  Bd7 {[%clk 0:02:59]} 8. Qd3 {[%clk 0:02:58]}  Qb6 {[%clk 0:02:58]} 9. O-O-O {[%clk 0:02:36]}  Nxd4 {[%clk 0:02:54]} 10. Bxd7+ {[%clk 0:02:35]}  Nxd7 {[%clk 0:02:53]} 11. Qxd4 {[%clk 0:02:34]}  Qxd4 {[%clk 0:02:54]} 12. Rxd4 {[%clk 0:02:34]}  a6 {[%clk 0:02:54]} 13. Rhd1 {[%clk 0:02:24]}  Rc8 {[%clk 0:02:54]} 14. Kb1 {[%clk 0:02:15]}  h5 {[%clk 0:02:38]} 15. h4 {[%clk 0:02:12]}  Rc6 {[%clk 0:02:11]} 16. f3 {[%clk 0:02:07]}  Be7 {[%clk 0:02:05]} 17. Bxe7 {[%clk 0:02:07]}  Kxe7 {[%clk 0:02:06]} 18. Ne2 {[%clk 0:02:07]}  Rhc8 {[%clk 0:01:58]} 19. c3 {[%clk 0:02:05]}  Ne5 {[%clk 0:01:54]} 20. Nf4 {[%clk 0:02:01]}  g6 {[%clk 0:01:53]} 21. Nh3 {[%clk 0:01:33]}  Nc4 {[%clk 0:01:51]} 22. Ng5 {[%clk 0:01:32]}  Rb6 {[%clk 0:01:27]} 23. b3 {[%clk 0:01:29]}  Ne3 {[%clk 0:01:26]} 24. R1d3 {[%clk 0:00:53]}  e5 {[%clk 0:01:01]} 25. Rxe3 {[%clk 0:00:49]}  exd4 {[%clk 0:01:01]} 26. cxd4 {[%clk 0:00:50]}  Rbc6 {[%clk 0:01:01]} 27. Re2 {[%clk 0:00:49]}  Rc1+ {[%clk 0:00:49]} 28. Kb2 {[%clk 0:00:49]}  Rd1 {[%clk 0:00:48]} 29. d5 {[%clk 0:00:49]}  Rcc1 {[%clk 0:00:37]} 30. Nh3 {[%clk 0:00:49]}  Re1 {[%clk 0:00:35]} 31. Rd2 {[%clk 0:00:49]}  Rb1+ {[%clk 0:00:35]} 32. Ka3 {[%clk 0:00:49]}  Red1 {[%clk 0:00:29]} 33. Rc2 {[%clk 0:00:49]}  Rdc1 {[%clk 0:00:29]} 34. Re2 {[%clk 0:00:43]}  Rc5 {[%clk 0:00:27]} 35. Nf4 {[%clk 0:00:39]}  Rd1 {[%clk 0:00:09]} 36. Kb2 {[%clk 0:00:36]}  a5 {[%clk 0:00:09]} 37. Nh3 {[%clk 0:00:26]}  b5 {[%clk 0:00:09]} 38. Ng5 {[%clk 0:00:23]}  b4 {[%clk 0:00:08]} 39. e5 {[%clk 0:00:20]}  Rcxd5 {[%clk 0:00:06]} 40. exd6+ {[%clk 0:00:20]}  Kxd6 {[%clk 0:00:06]} 41. Nxf7+ {[%clk 0:00:20]}  Kc7 {[%clk 0:00:05]} 42. Rc2+ {[%clk 0:00:20]}  Kb7 {[%clk 0:00:04]} 43. Nh8 {[%clk 0:00:18]}  Rd6 {[%clk 0:00:03]} 44. Nf7 {[%clk 0:00:17]}  R6d2 {[%clk 0:00:04]} 45. Ne5 {[%clk 0:00:16]}  Rxc2+ {[%clk 0:00:03]} 46. Kxc2 {[%clk 0:00:17]}  Rg1 {[%clk 0:00:04]} 47. g4 {[%clk 0:00:17]}  hxg4 {[%clk 0:00:04]} 48. fxg4 {[%clk 0:00:18]}  Kc7 {[%clk 0:00:04]} 49. Nxg6 {[%clk 0:00:17]}  Rxg4 {[%clk 0:00:04]} 50. h5 {[%clk 0:00:17]}  Rg2+ {[%clk 0:00:04]} 51. Kd3 {[%clk 0:00:16]}  Rxa2 {[%clk 0:00:04]} 52. Kc4 {[%clk 0:00:15]}  Rh2 {[%clk 0:00:03]} 53. Nf4 {[%clk 0:00:12]}  Rh4 {[%clk 0:00:04]} 0-1


[Site "https://www.chess.com"]

[Event "Titled Tuesday Blitz June 27 Early 2023"]
[White "Seo, Jung Min"]
[Black "Cesar Maestre, Bernardo"]
[WhiteFideId "1734687"]
[BlackFideId "24542547"]
[WhiteElo "2878"]
[BlackElo "2506"]
[Result "1-0"]
[Round "1"]
[TimeControl "180+2"]
[Date "2023.06.27"]
[WhiteClock "0:01:45"]
[BlackClock "0:00:31"]
[Board "47"]

1. d4 {[%clk 0:02:59]}  Nf6 {[%clk 0:02:58]} 2. Nf3 {[%clk 0:03:00]}  d5 {[%clk 0:02:58]} 3. g3 {[%clk 0:03:01]}  c5 {[%clk 0:02:57]} 4. Bg2 {[%clk 0:02:59]}  cxd4 {[%clk 0:02:57]} 5. O-O {[%clk 0:03:00]}  e6 {[%clk 0:02:55]} 6. Nxd4 {[%clk 0:02:59]}  Be7 {[%clk 0:02:51]} 7. c4 {[%clk 0:02:58]}  O-O {[%clk 0:02:48]} 8. cxd5 {[%clk 0:02:56]}  exd5 {[%clk 0:02:47]} 9. Nc3 {[%clk 0:02:56]}  Nc6 {[%clk 0:02:47]} 10. b3 {[%clk 0:02:45]}  Qb6 {[%clk 0:02:24]} 11. Nxc6 {[%clk 0:02:41]}  bxc6 {[%clk 0:02:24]} 12. e3 {[%clk 0:02:29]}  Bg4 {[%clk 0:02:19]} 13. Qd2 {[%clk 0:02:25]}  Rfd8 {[%clk 0:02:16]} 14. Na4 {[%clk 0:02:24]}  Qb4 {[%clk 0:02:02]} 15. Qxb4 {[%clk 0:02:22]}  Bxb4 {[%clk 0:02:03]} 16. Bb2 {[%clk 0:02:22]}  Nd7 {[%clk 0:01:57]} 17. Rfc1 {[%clk 0:02:19]}  Rac8 {[%clk 0:01:57]} 18. a3 {[%clk 0:02:12]}  Bd6 {[%clk 0:01:53]} 19. b4 {[%clk 0:02:09]}  Be6 {[%clk 0:01:46]} 20. Bd4 {[%clk 0:02:08]}  Rc7 {[%clk 0:01:39]} 21. Rc2 {[%clk 0:02:03]}  Rdc8 {[%clk 0:01:38]} 22. Rac1 {[%clk 0:02:03]}  a5 {[%clk 0:01:26]} 23. Nb6 {[%clk 0:01:59]}  axb4 {[%clk 0:00:43]} 24. Nxc8 {[%clk 0:01:56]}  Rxc8 {[%clk 0:00:43]} 25. axb4 {[%clk 0:01:56]}  Bxb4 {[%clk 0:00:43]} 26. Rxc6 {[%clk 0:01:55]}  Re8 {[%clk 0:00:42]} 27. Rc8 {[%clk 0:01:53]}  Rxc8 {[%clk 0:00:38]} 28. Rxc8+ {[%clk 0:01:52]}  Bf8 {[%clk 0:00:39]} 29. Rc1 {[%clk 0:01:48]}  f6 {[%clk 0:00:39]} 30. Rd1 {[%clk 0:01:46]}  Kf7 {[%clk 0:00:31]} 31. Ba7 {[%clk 0:01:45]} 1-0


[Site "https://www.chess.com"]

[Event "Titled Tuesday Blitz June 27 Early 2023"]
[White "Drygalov, Sergey"]
[Black "Molenda, Marcin"]
[WhiteFideId "24171743"]
[BlackFideId "1173065"]
[WhiteElo "2867"]
[BlackElo "2500"]
[Result "1-0"]
[Round "1"]
[TimeControl "180+2"]
[Date "2023.06.27"]
[WhiteClock "0:00:20"]
[BlackClock "0:00:02"]
[Board "51"]

1. d4 {[%clk 0:02:58]}  d5 {[%clk 0:02:55]} 2. c4 {[%clk 0:02:58]}  dxc4 {[%clk 0:02:49]} 3. Nf3 {[%clk 0:02:58]}  Nf6 {[%clk 0:02:49]} 4. e3 {[%clk 0:02:58]}  a6 {[%clk 0:02:48]} 5. Bxc4 {[%clk 0:02:58]}  e6 {[%clk 0:02:48]} 6. O-O {[%clk 0:02:58]}  c5 {[%clk 0:02:48]} 7. Re1 {[%clk 0:02:58]}  b5 {[%clk 0:02:45]} 8. Bf1 {[%clk 0:02:58]}  Bb7 {[%clk 0:02:44]} 9. a4 {[%clk 0:02:58]}  Qb6 {[%clk 0:02:38]} 10. Nc3 {[%clk 0:02:48]}  b4 {[%clk 0:02:34]} 11. a5 {[%clk 0:02:37]}  Qc7 {[%clk 0:02:30]} 12. Na4 {[%clk 0:02:37]}  Nbd7 {[%clk 0:02:28]} 13. Bd2 {[%clk 0:02:34]}  cxd4 {[%clk 0:02:24]} 14. Nxd4 {[%clk 0:02:20]}  Qxa5 {[%clk 0:02:21]} 15. Nb3 {[%clk 0:02:17]}  Qh5 {[%clk 0:02:14]} 16. Qxh5 {[%clk 0:02:08]}  Nxh5 {[%clk 0:02:14]} 17. Na5 {[%clk 0:02:08]}  Be4 {[%clk 0:01:34]} 18. f3 {[%clk 0:02:01]}  Bg6 {[%clk 0:01:34]} 19. Rac1 {[%clk 0:01:58]}  Bd6 {[%clk 0:01:33]} 20. Rc6 {[%clk 0:01:56]}  Be7 {[%clk 0:01:15]} 21. e4 {[%clk 0:01:45]}  O-O {[%clk 0:01:14]} 22. e5 {[%clk 0:01:43]}  Rfc8 {[%clk 0:00:48]} 23. Rec1 {[%clk 0:01:31]}  Rd8 {[%clk 0:00:36]} 24. Nb7 {[%clk 0:01:29]}  Rdb8 {[%clk 0:00:33]} 25. Rc7 {[%clk 0:01:29]}  Ra7 {[%clk 0:00:19]} 26. Na5 {[%clk 0:01:20]}  Rxc7 {[%clk 0:00:16]} 27. Rxc7 {[%clk 0:01:18]}  Bd8 {[%clk 0:00:17]} 28. Rxd7 {[%clk 0:01:18]}  Bxa5 {[%clk 0:00:17]} 29. g4 {[%clk 0:01:09]}  f5 {[%clk 0:00:18]} 30. gxh5 {[%clk 0:01:05]}  Be8 {[%clk 0:00:18]} 31. Rd6 {[%clk 0:00:48]}  Bxa4 {[%clk 0:00:17]} 32. Bc4 {[%clk 0:00:46]}  Bb6+ {[%clk 0:00:16]} 33. Kg2 {[%clk 0:00:45]}  a5 {[%clk 0:00:14]} 34. Bxe6+ {[%clk 0:00:41]}  Kf8 {[%clk 0:00:14]} 35. Bxf5 {[%clk 0:00:41]}  Bc7 {[%clk 0:00:12]} 36. Rd5 {[%clk 0:00:37]}  Rb5 {[%clk 0:00:11]} 37. Rxb5 {[%clk 0:00:30]}  Bxb5 {[%clk 0:00:12]} 38. f4 {[%clk 0:00:30]}  Bb6 {[%clk 0:00:13]} 39. Bxh7 {[%clk 0:00:25]}  Bd4 {[%clk 0:00:10]} 40. b3 {[%clk 0:00:25]}  Bc6+ {[%clk 0:00:10]} 41. Kg3 {[%clk 0:00:22]}  Bd5 {[%clk 0:00:04]} 42. Bc2 {[%clk 0:00:23]}  Ke7 {[%clk 0:00:05]} 43. Kg4 {[%clk 0:00:22]}  Kf7 {[%clk 0:00:02]} 44. Kg5 {[%clk 0:00:22]}  Be6 {[%clk 0:00:01]} 45. h6 {[%clk 0:00:22]}  gxh6+ {[%clk 0:00:02]} 46. Kxh6 {[%clk 0:00:23]}  Bd5 {[%clk 0:00:01]} 47. Kg5 {[%clk 0:00:23]}  a4 {[%clk 0:00:02]} 48. bxa4 {[%clk 0:00:22]}  b3 {[%clk 0:00:02]} 49. Bb1 {[%clk 0:00:22]}  Bc6 {[%clk 0:00:02]} 50. a5 {[%clk 0:00:22]}  Bf3 {[%clk 0:00:03]} 51. h4 {[%clk 0:00:22]}  Bd1 {[%clk 0:00:03]} 52. h5 {[%clk 0:00:20]}  Bb2 {[%clk 0:00:03]} 53. a6 {[%clk 0:00:20]}  Bc2 {[%clk 0:00:03]} 54. Bxc2 {[%clk 0:00:20]}  bxc2 {[%clk 0:00:03]} 55. a7 {[%clk 0:00:21]}  c1=Q {[%clk 0:00:03]} 56. Bxc1 {[%clk 0:00:21]}  Bxc1 {[%clk 0:00:04]} 57. a8=Q {[%clk 0:00:21]}  Ba3 {[%clk 0:00:02]} 58. Qxa3 {[%clk 0:00:20]} 1-0


[Site "https://www.chess.com"]

[Event "Titled Tuesday Blitz June 27 Early 2023"]
[White "Czerw, Dawid"]
[Black "Pichot, Alan"]
[WhiteFideId "1145746"]
[BlackFideId "110973"]
[WhiteElo "2494"]
[BlackElo "2859"]
[Result "0-1"]
[Round "1"]
[TimeControl "180+2"]
[Date "2023.06.27"]
[WhiteClock "0:00:05"]
[BlackClock "0:01:38"]
[Board "54"]

1. e4 {[%clk 0:03:00]}  c5 {[%clk 0:02:57]} 2. Nf3 {[%clk 0:03:00]}  e6 {[%clk 0:02:58]} 3. d4 {[%clk 0:03:01]}  cxd4 {[%clk 0:02:58]} 4. Nxd4 {[%clk 0:03:02]}  Nc6 {[%clk 0:02:59]} 5. Nc3 {[%clk 0:03:02]}  Qc7 {[%clk 0:02:59]} 6. Be3 {[%clk 0:03:01]}  a6 {[%clk 0:02:59]} 7. Qd2 {[%clk 0:03:00]}  Nf6 {[%clk 0:02:57]} 8. O-O-O {[%clk 0:03:00]}  Be7 {[%clk 0:02:56]} 9. f4 {[%clk 0:02:59]}  b5 {[%clk 0:02:54]} 10. Bd3 {[%clk 0:02:57]}  Bb7 {[%clk 0:02:53]} 11. Rhe1 {[%clk 0:02:54]}  Nb4 {[%clk 0:02:40]} 12. e5 {[%clk 0:02:21]}  Nfd5 {[%clk 0:02:33]} 13. Nxd5 {[%clk 0:02:05]}  Bxd5 {[%clk 0:02:31]} 14. a3 {[%clk 0:01:59]}  Nxd3+ {[%clk 0:02:31]} 15. Qxd3 {[%clk 0:01:59]}  Rc8 {[%clk 0:02:25]} 16. g4 {[%clk 0:01:33]}  h5 {[%clk 0:02:22]} 17. h3 {[%clk 0:01:16]}  hxg4 {[%clk 0:02:21]} 18. hxg4 {[%clk 0:01:17]}  Rh3 {[%clk 0:02:21]} 19. Rd2 {[%clk 0:01:11]}  b4 {[%clk 0:02:15]} 20. axb4 {[%clk 0:01:05]}  Bxb4 {[%clk 0:02:16]} 21. c3 {[%clk 0:01:06]}  Qa5 {[%clk 0:02:07]} 22. f5 {[%clk 0:00:51]}  Bxc3 {[%clk 0:02:03]} 23. bxc3 {[%clk 0:00:29]}  Rxc3+ {[%clk 0:01:59]} 24. Qxc3 {[%clk 0:00:11]}  Qxc3+ {[%clk 0:02:00]} 25. Nc2 {[%clk 0:00:11]}  a5 {[%clk 0:01:45]} 26. Bd4 {[%clk 0:00:11]}  Qb3 {[%clk 0:01:44]} 27. f6 {[%clk 0:00:11]}  g5 {[%clk 0:01:40]} 28. Ree2 {[%clk 0:00:11]}  Rh1+ {[%clk 0:01:38]} 29. Rd1 {[%clk 0:00:10]}  Rxd1+ {[%clk 0:01:37]} 30. Kxd1 {[%clk 0:00:05]}  Bf3 {[%clk 0:01:38]} 0-1


[Site "https://www.chess.com"]

[Event "Titled Tuesday Blitz June 27 Early 2023"]
[White "Molina, Roberto Junio Brito"]
[Black "Aggelis, Nikolaos"]
[WhiteFideId "2109450"]
[BlackFideId "4213220"]
[WhiteElo "2857"]
[BlackElo "2491"]
[Result "1-0"]
[Round "1"]
[TimeControl "180+2"]
[Date "2023.06.27"]
[WhiteClock "0:00:10"]
[BlackClock "0:00:17"]
[Board "55"]

1. d4 {[%clk 0:03:00]}  f5 {[%clk 0:02:58]} 2. g3 {[%clk 0:03:00]}  Nf6 {[%clk 0:02:57]} 3. Bg2 {[%clk 0:03:01]}  g6 {[%clk 0:02:58]} 4. Nf3 {[%clk 0:03:01]}  Bg7 {[%clk 0:02:59]} 5. O-O {[%clk 0:03:01]}  d6 {[%clk 0:02:59]} 6. c4 {[%clk 0:03:01]}  O-O {[%clk 0:03:00]} 7. Nc3 {[%clk 0:03:02]}  c6 {[%clk 0:03:00]} 8. d5 {[%clk 0:03:02]}  e5 {[%clk 0:03:00]} 9. dxe6 {[%clk 0:03:01]}  Bxe6 {[%clk 0:03:01]} 10. b3 {[%clk 0:03:01]}  Qc7 {[%clk 0:02:57]} 11. Nd4 {[%clk 0:03:01]}  Bf7 {[%clk 0:02:56]} 12. Bb2 {[%clk 0:03:01]}  Nbd7 {[%clk 0:02:54]} 13. e3 {[%clk 0:03:01]}  Rad8 {[%clk 0:02:52]} 14. Qc2 {[%clk 0:03:01]}  Nc5 {[%clk 0:02:51]} 15. Rad1 {[%clk 0:03:00]}  Rfe8 {[%clk 0:02:50]} 16. Rfe1 {[%clk 0:02:59]}  Nfe4 {[%clk 0:02:50]} 17. Nde2 {[%clk 0:02:52]}  Nxc3 {[%clk 0:02:44]} 18. Bxc3 {[%clk 0:02:50]}  Be5 {[%clk 0:02:37]} 19. Rd2 {[%clk 0:02:44]}  Ne4 {[%clk 0:02:30]} 20. Bxe4 {[%clk 0:02:43]}  fxe4 {[%clk 0:02:31]} 21. Red1 {[%clk 0:02:40]}  g5 {[%clk 0:02:04]} 22. Bxe5 {[%clk 0:02:34]}  Rxe5 {[%clk 0:02:03]} 23. Qc3 {[%clk 0:02:25]}  Qe7 {[%clk 0:01:36]} 24. g4 {[%clk 0:02:11]}  Bg6 {[%clk 0:01:30]} 25. Ng3 {[%clk 0:02:10]}  Qe6 {[%clk 0:01:13]} 26. h3 {[%clk 0:02:09]}  d5 {[%clk 0:01:02]} 27. Qb4 {[%clk 0:02:03]}  Qf7 {[%clk 0:00:56]} 28. cxd5 {[%clk 0:02:01]}  Rexd5 {[%clk 0:00:54]} 29. Rxd5 {[%clk 0:02:00]}  cxd5 {[%clk 0:00:54]} 30. Qd4 {[%clk 0:01:48]}  b6 {[%clk 0:00:49]} 31. Qe5 {[%clk 0:01:46]}  h6 {[%clk 0:00:38]} 32. Nf5 {[%clk 0:01:19]}  Bxf5 {[%clk 0:00:38]} 33. gxf5 {[%clk 0:01:20]}  Rd7 {[%clk 0:00:35]} 34. Rc1 {[%clk 0:01:14]}  Qf8 {[%clk 0:00:24]} 35. Rc6 {[%clk 0:01:10]}  Kh7 {[%clk 0:00:19]} 36. Re6 {[%clk 0:00:42]}  Qg7 {[%clk 0:00:18]} 37. f6 {[%clk 0:00:40]}  Qf7 {[%clk 0:00:18]} 38. Re7 {[%clk 0:00:36]}  Rxe7 {[%clk 0:00:16]} 39. fxe7 {[%clk 0:00:36]}  Qe8 {[%clk 0:00:17]} 40. Qf6 {[%clk 0:00:22]}  b5 {[%clk 0:00:11]} 41. b4 {[%clk 0:00:21]}  Kg8 {[%clk 0:00:07]} 42. Kg2 {[%clk 0:00:15]}  Qf7 {[%clk 0:00:07]} 43. Qe5 {[%clk 0:00:13]}  Qe8 {[%clk 0:00:07]} 44. a3 {[%clk 0:00:12]}  Kf7 {[%clk 0:00:06]} 45. Qxd5+ {[%clk 0:00:12]}  Kxe7 {[%clk 0:00:07]} 46. Qxe4+ {[%clk 0:00:13]}  Kf7 {[%clk 0:00:07]} 47. Qxe8+ {[%clk 0:00:13]}  Kxe8 {[%clk 0:00:08]} 48. Kf3 {[%clk 0:00:13]}  Ke7 {[%clk 0:00:09]} 49. Kg4 {[%clk 0:00:13]}  Kf6 {[%clk 0:00:08]} 50. Kh5 {[%clk 0:00:14]}  Kg7 {[%clk 0:00:09]} 51. f4 {[%clk 0:00:13]}  gxf4 {[%clk 0:00:08]} 52. exf4 {[%clk 0:00:14]}  Kh7 {[%clk 0:00:09]} 53. f5 {[%clk 0:00:13]}  Kg7 {[%clk 0:00:09]} 54. Kg4 {[%clk 0:00:14]}  Kf6 {[%clk 0:00:08]} 55. Kf4 {[%clk 0:00:14]}  h5 {[%clk 0:00:09]} 56. h4 {[%clk 0:00:14]}  Kf7 {[%clk 0:00:08]} 57. Kg5 {[%clk 0:00:14]}  a6 {[%clk 0:00:07]} 58. Kxh5 {[%clk 0:00:15]}  Kf6 {[%clk 0:00:07]} 59. Kg4 {[%clk 0:00:16]}  Ke5 {[%clk 0:00:08]} 60. Kg5 {[%clk 0:00:17]}  Kd4 {[%clk 0:00:09]} 61. f6 {[%clk 0:00:17]}  Kc4 {[%clk 0:00:10]} 62. f7 {[%clk 0:00:18]}  Kb3 {[%clk 0:00:11]} 63. f8=Q {[%clk 0:00:19]}  Kxa3 {[%clk 0:00:12]} 64. Qc5 {[%clk 0:00:18]}  Ka4 {[%clk 0:00:12]} 65. h5 {[%clk 0:00:18]}  a5 {[%clk 0:00:13]} 66. bxa5 {[%clk 0:00:18]}  Kxa5 {[%clk 0:00:14]} 67. h6 {[%clk 0:00:18]}  Ka4 {[%clk 0:00:15]} 68. h7 {[%clk 0:00:17]}  b4 {[%clk 0:00:15]} 69. h8=R {[%clk 0:00:12]}  b3 {[%clk 0:00:16]} 70. Rb8 {[%clk 0:00:11]}  b2 {[%clk 0:00:17]} 71. Qb4# {[%clk 0:00:10]} 1-0


[Site "https://www.chess.com"]

[Event "Titled Tuesday Blitz June 27 Early 2023"]
[White "Erzhanov, Arman"]
[Black "Moroni, Luca Jr"]
[WhiteFideId "4138821"]
[BlackFideId "865834"]
[WhiteElo "2490"]
[BlackElo "2857"]
[Result "1-0"]
[Round "1"]
[TimeControl "180+2"]
[Date "2023.06.27"]
[WhiteClock "0:01:01"]
[BlackClock "0:01:39"]
[Board "56"]

1. e4 {[%clk 0:03:00]}  g6 {[%clk 0:03:00]} 2. d4 {[%clk 0:02:57]}  Bg7 {[%clk 0:02:59]} 3. g3 {[%clk 0:02:57]}  d6 {[%clk 0:02:58]} 4. Bg2 {[%clk 0:02:57]}  e5 {[%clk 0:02:58]} 5. Ne2 {[%clk 0:02:56]}  exd4 {[%clk 0:02:57]} 6. Nxd4 {[%clk 0:02:56]}  Ne7 {[%clk 0:02:58]} 7. O-O {[%clk 0:02:56]}  Nbc6 {[%clk 0:02:59]} 8. Be3 {[%clk 0:02:56]}  O-O {[%clk 0:02:59]} 9. Nc3 {[%clk 0:02:56]}  Be6 {[%clk 0:02:56]} 10. h3 {[%clk 0:02:55]}  Nxd4 {[%clk 0:02:55]} 11. Bxd4 {[%clk 0:02:55]}  Bxd4 {[%clk 0:02:56]} 12. Qxd4 {[%clk 0:02:56]}  Nc6 {[%clk 0:02:57]} 13. Qd2 {[%clk 0:02:56]}  Qf6 {[%clk 0:02:57]} 14. Rad1 {[%clk 0:02:52]}  Rae8 {[%clk 0:02:55]} 15. Kh2 {[%clk 0:02:49]}  Qg7 {[%clk 0:02:53]} 16. f4 {[%clk 0:02:49]}  f5 {[%clk 0:02:53]} 17. Rfe1 {[%clk 0:02:46]}  Kh8 {[%clk 0:02:52]} 18. exf5 {[%clk 0:02:41]}  gxf5 {[%clk 0:02:52]} 19. Re3 {[%clk 0:02:31]}  Bd7 {[%clk 0:02:46]} 20. Rde1 {[%clk 0:02:31]}  Rg8 {[%clk 0:02:42]} 21. Qf2 {[%clk 0:02:25]}  Nd4 {[%clk 0:02:33]} 22. Bd5 {[%clk 0:02:22]}  Rgf8 {[%clk 0:02:31]} 23. Rxe8 {[%clk 0:02:19]}  Rxe8 {[%clk 0:02:32]} 24. Rxe8+ {[%clk 0:02:19]}  Bxe8 {[%clk 0:02:32]} 25. Nd1 {[%clk 0:02:14]}  c6 {[%clk 0:02:31]} 26. Bg2 {[%clk 0:02:13]}  Bd7 {[%clk 0:02:28]} 27. c3 {[%clk 0:02:13]}  Nb5 {[%clk 0:02:27]} 28. a4 {[%clk 0:02:12]}  Nc7 {[%clk 0:02:26]} 29. Qxa7 {[%clk 0:02:12]}  Bc8 {[%clk 0:02:20]} 30. Qb8 {[%clk 0:02:11]}  Qd7 {[%clk 0:02:20]} 31. Ne3 {[%clk 0:02:06]}  Na6 {[%clk 0:02:20]} 32. Qa8 {[%clk 0:02:03]}  Kg7 {[%clk 0:02:18]} 33. Qa7 {[%clk 0:01:58]}  Nc5 {[%clk 0:02:13]} 34. b4 {[%clk 0:01:51]}  Nb3 {[%clk 0:02:13]} 35. Nc4 {[%clk 0:01:38]}  Qe6 {[%clk 0:01:55]} 36. Nb6 {[%clk 0:01:31]}  Nd2 {[%clk 0:01:54]} 37. Nxc8 {[%clk 0:01:19]}  Qe2 {[%clk 0:01:54]} 38. Qd4+ {[%clk 0:01:05]}  Kf7 {[%clk 0:01:44]} 39. Nxd6+ {[%clk 0:01:04]}  Ke6 {[%clk 0:01:39]} 40. Qe5+ {[%clk 0:01:01]} 1-0


[Site "https://www.chess.com"]

[Event "Titled Tuesday Blitz June 27 Early 2023"]
[White "Drozdowski, Kacper"]
[Black "Osmak, Yuliia"]
[WhiteFideId "1136720"]
[BlackFideId "14101602"]
[WhiteElo "2854"]
[BlackElo "2489"]
[Result "1-0"]
[Round "1"]
[TimeControl "180+2"]
[Date "2023.06.27"]
[WhiteClock "0:00:23"]
[BlackClock "0:00:00"]
[Board "57"]

1. e4 {[%clk 0:03:00]}  c6 {[%clk 0:02:55]} 2. d4 {[%clk 0:02:59]}  d5 {[%clk 0:02:55]} 3. Nc3 {[%clk 0:02:59]}  dxe4 {[%clk 0:02:54]} 4. Nxe4 {[%clk 0:03:00]}  Bf5 {[%clk 0:02:51]} 5. Ng3 {[%clk 0:02:58]}  Bg6 {[%clk 0:02:51]} 6. Nh3 {[%clk 0:02:58]}  e6 {[%clk 0:02:49]} 7. Nf4 {[%clk 0:02:58]}  Bd6 {[%clk 0:02:46]} 8. h4 {[%clk 0:02:56]}  Qc7 {[%clk 0:02:31]} 9. Nxg6 {[%clk 0:02:54]}  hxg6 {[%clk 0:02:31]} 10. Ne4 {[%clk 0:02:54]}  Bf4 {[%clk 0:02:27]} 11. Bxf4 {[%clk 0:02:53]}  Qxf4 {[%clk 0:02:28]} 12. Ng5 {[%clk 0:02:54]}  Nf6 {[%clk 0:02:21]} 13. g3 {[%clk 0:02:51]}  Qc7 {[%clk 0:02:19]} 14. c3 {[%clk 0:02:51]}  Nbd7 {[%clk 0:02:19]} 15. Bg2 {[%clk 0:02:51]}  Nb6 {[%clk 0:02:13]} 16. O-O {[%clk 0:02:48]}  O-O-O {[%clk 0:02:11]} 17. Qe2 {[%clk 0:02:35]}  Rhe8 {[%clk 0:02:08]} 18. Rfe1 {[%clk 0:02:33]}  Kb8 {[%clk 0:02:00]} 19. a4 {[%clk 0:02:32]}  Nc8 {[%clk 0:01:59]} 20. a5 {[%clk 0:02:31]}  a6 {[%clk 0:01:58]} 21. Qe5 {[%clk 0:02:21]}  Nd6 {[%clk 0:01:50]} 22. b4 {[%clk 0:02:15]}  Rd7 {[%clk 0:01:46]} 23. Rad1 {[%clk 0:02:12]}  Nb5 {[%clk 0:01:44]} 24. Qc5 {[%clk 0:01:54]}  Red8 {[%clk 0:01:38]} 25. Bf3 {[%clk 0:01:40]}  Nd6 {[%clk 0:01:31]} 26. Kg2 {[%clk 0:01:37]}  Nf5 {[%clk 0:01:30]} 27. Rh1 {[%clk 0:01:26]}  Nd5 {[%clk 0:01:27]} 28. Rde1 {[%clk 0:01:23]}  Qd6 {[%clk 0:01:11]} 29. Qc4 {[%clk 0:01:09]}  Qf8 {[%clk 0:01:05]} 30. Qd3 {[%clk 0:01:05]}  Nf6 {[%clk 0:00:57]} 31. Qe2 {[%clk 0:01:04]}  Nd5 {[%clk 0:00:55]} 32. Ne4 {[%clk 0:01:01]}  Rc7 {[%clk 0:00:51]} 33. Qd2 {[%clk 0:00:58]}  Nd6 {[%clk 0:00:48]} 34. Nc5 {[%clk 0:00:58]}  Nf5 {[%clk 0:00:41]} 35. h5 {[%clk 0:00:55]}  gxh5 {[%clk 0:00:40]} 36. Rxh5 {[%clk 0:00:56]}  g6 {[%clk 0:00:39]} 37. Rh2 {[%clk 0:00:55]}  Qg7 {[%clk 0:00:38]} 38. Reh1 {[%clk 0:00:54]}  Nf6 {[%clk 0:00:36]} 39. Qe2 {[%clk 0:00:52]}  Ka7 {[%clk 0:00:25]} 40. Qe5 {[%clk 0:00:52]}  Rcc8 {[%clk 0:00:21]} 41. g4 {[%clk 0:00:51]}  Nd6 {[%clk 0:00:17]} 42. g5 {[%clk 0:00:44]}  Nfe8 {[%clk 0:00:17]} 43. Rh7 {[%clk 0:00:39]}  Qf8 {[%clk 0:00:15]} 44. Rh8 {[%clk 0:00:36]}  Qe7 {[%clk 0:00:15]} 45. R1h7 {[%clk 0:00:36]}  Nf5 {[%clk 0:00:13]} 46. Qf4 {[%clk 0:00:36]}  Ned6 {[%clk 0:00:12]} 47. Rxd8 {[%clk 0:00:34]}  Rxd8 {[%clk 0:00:13]} 48. Bg4 {[%clk 0:00:33]}  Qe8 {[%clk 0:00:11]} 49. Nd3 {[%clk 0:00:33]}  Nb5 {[%clk 0:00:09]} 50. Qc1 {[%clk 0:00:27]}  Rd7 {[%clk 0:00:08]} 51. Ne5 {[%clk 0:00:27]}  Rc7 {[%clk 0:00:07]} 52. Bxf5 {[%clk 0:00:25]}  exf5 {[%clk 0:00:07]} 53. Qe3 {[%clk 0:00:25]}  Ka8 {[%clk 0:00:04]} 54. c4 {[%clk 0:00:26]}  Nd6 {[%clk 0:00:04]} 55. Qf4 {[%clk 0:00:25]}  Re7 {[%clk 0:00:03]} 56. f3 {[%clk 0:00:25]}  Nc8 {[%clk 0:00:03]} 57. Qh4 {[%clk 0:00:24]}  Qd8 {[%clk 0:00:03]} 58. Rh8 {[%clk 0:00:24]}  Qc7 {[%clk 0:00:03]} 59. Rf8 {[%clk 0:00:23]}  Ka7 {[%clk 0:00:03]} 60. Qh8 {[%clk 0:00:22]}  Rxe5 {[%clk 0:00:01]} 61. Qxe5 {[%clk 0:00:22]}  Qxe5 {[%clk 0:00:01]} 62. dxe5 {[%clk 0:00:23]}  Ne7 {[%clk 0:00:00]} 63. Rxf7 {[%clk 0:00:23]} 1-0


[Site "https://www.chess.com"]